lending/lending_fUSD_20250121
["ID","MTS","AMOUNT","RATE_DAILY","PERIOD"]
[349914647,1737502234060,-1199.64,0.00020797,2]
[349914648,1737502234069,-2199.56,0.00020797,2]
[349914649,1737502234078,-1322.32,0.00020797,2]
[349914650,1737502234088,-500.0,0.00020797,2]
[349914651,1737502234097,-500.0,0.00020797,2]
[349914652,1737502234106,-683.42,0.00020797,2]
[349914653,1737502234118,-500.0,0.00020797,2]
[349914654,1737502234128,-1542.81,0.00020797,2]
[349914655,1737502234137,-987.79,0.00020797,2]
[349914656,1737502234147,-1098.06,0.00020797,2]
[349914657,1737502234156,-500.0,0.00020797,2]
[349914658,1737502234167,-500.0,0.00020797,2]
[349914659,1737502234176,-94450.0861,0.00020798,2]
[349914660,1737502234186,-1002.4156,0.00020798,2]
[349914661,1737502234196,-10558.7677,0.00020798,2]
[349914662,1737502234206,-245.71971413,0.00020798,2]
[349914663,1737502234215,-3768.2369,0.00020799,2]
[349914664,1737502234224,-1000.0,0.00020799,2]
[349914665,1737502234234,-300.0,0.00020799,2]
[349914666,1737502234243,-21066.36264458,0.00020799,2]
[349914667,1737502234252,-383.42406012,0.00020799,2]
[349914668,1737502234262,-3836.72201938,0.000208,2]
[349914669,1737502234271,-3339.03541661,0.00020817,2]
[349914670,1737502234280,-293.47262563,0.00020818,2]
[349914671,1737502234290,-2801.81509244,0.0002082,2]
[349914672,1737502234299,-293.47262563,0.00020824,2]
[349914673,1737502234308,-200.0,0.00020827,2]
[349914674,1737502234318,-200.0,0.00020828,2]
[349914675,1737502234327,-2723.21853956,0.0002083,2]
[349914676,1737502234336,-210.65129002,0.00020834,2]
[349914677,1737502234345,-293.47262563,0.00020839,2]
[349914678,1737502234355,-293.47262563,0.0002084,2]
[349914679,1737502234364,-200.0,0.00020849,2]
[349914680,1737502234374,-2801.81509244,0.00020849,2]
[349914681,1737502234383,-293.47262563,0.00020853,2]
[349914682,1737502234393,-210.65129002,0.00020856,2]
[349914683,1737502234402,-210.65129002,0.00020862,2]
[349914684,1737502234412,-3836.72201938,0.00020868,2]
[349914685,1737502234422,-500.0,0.00020873,2]
[349914686,1737502234432,-500.98775363,0.00020873,2]
[349914687,1737502234441,-500.0,0.00020873,2]
[349914688,1737502234451,-151.01969709,0.00020873,2]
[349914689,1737502234461,-500.0,0.00020873,2]
[349914690,1737502234470,-162.04791727,0.00020873,2]
[349914691,1737502234480,-151.99542583,0.00020873,2]
[349914692,1737502234489,-299.93628504,0.00020873,2]
[349914693,1737502234500,-160.99512383,0.00020873,2]
[349914694,1737502234510,-408.30233082,0.00020873,2]
[349914695,1737502234519,-500.0,0.00020873,2]
[349914696,1737502234528,-151.04339663,0.00020873,2]
[349914697,1737502234539,-2801.81509244,0.00020876,2]
[349914698,1737502234548,-500.0,0.00020879,2]
[349914699,1737502234558,-742.92,0.00020879,2]
[349914700,1737502234567,-509.58399716,0.00020879,2]
[349914701,1737502234576,-500.0,0.00020879,2]
[349914702,1737502234587,-500.0,0.00020879,2]
[349914703,1737502234596,-502.21994434,0.00020879,2]
[349914704,1737502234606,-500.0,0.00020879,2]
[349914705,1737502234614,-500.0,0.00020879,2]
[349914706,1737502234623,-500.0,0.00020879,2]
[349914707,1737502234632,-709.85,0.00020879,2]
[349914708,1737502234642,-500.0,0.00020879,2]
[349914709,1737502234651,-577.03,0.00020879,2]
[349914710,1737502234662,-500.0,0.00020879,2]
[349914711,1737502234671,-500.0,0.00020879,2]
[349914712,1737502234680,-500.0,0.00020879,2]
[349914713,1737502234690,-500.0,0.00020879,2]
[349914714,1737502234699,-500.0,0.00020879,2]
[349914715,1737502234708,-500.0,0.00020879,2]
[349914716,1737502234718,-500.0,0.00020879,2]
[349914717,1737502234727,-500.0,0.00020879,2]
[349914718,1737502234738,-500.0,0.00020879,2]
[349914719,1737502234749,-485.30188789,0.00020879,2]
[349914720,1737502234758,-500.0,0.00020879,2]
[349914721,1737502234769,-500.0,0.00020879,2]
[349914722,1737502234779,-500.0,0.00020879,2]
[349914723,1737502234788,-500.0,0.00020879,2]
[349914724,1737502234798,-500.0,0.00020879,2]
[349914725,1737502234808,-500.0,0.00020879,2]
[349914726,1737502234817,-500.0,0.00020879,2]
[349914727,1737502234827,-500.0,0.00020879,2]
[349914728,1737502234837,-500.0,0.00020879,2]
[349914729,1737502234846,-500.0,0.00020879,2]
[349914730,1737502234856,-500.0,0.00020879,2]
[349914731,1737502234866,-500.0,0.00020879,2]
[349914732,1737502234876,-500.0,0.00020879,2]
[349914733,1737502234885,-500.0,0.00020879,2]
[349914734,1737502234894,-500.0,0.00020879,2]
[349914735,1737502234903,-500.0,0.00020879,2]
[349914736,1737502234912,-500.0,0.00020879,2]
[349914737,1737502234923,-500.0,0.00020879,2]
[349914738,1737502234932,-500.0,0.00020879,2]
[349914739,1737502234943,-500.0,0.00020879,2]
[349914740,1737502234953,-500.0,0.00020879,2]
[349914741,1737502234963,-500.0,0.00020879,2]
[349914742,1737502234973,-500.0,0.00020879,2]
[349914743,1737502234984,-500.0,0.00020879,2]
[349914744,1737502234994,-500.0,0.00020879,2]
[349914745,1737502235004,-500.0,0.00020879,2]
[349914746,1737502235014,-500.0,0.00020879,2]
[349914747,1737502235023,-500.0,0.00020879,2]
[349914748,1737502235032,-500.0,0.00020879,2]
[349914749,1737502235042,-215.62600046,0.00020879,2]
[349914750,1737502235051,-500.0,0.00020879,2]
[349914751,1737502235060,-500.0,0.00020879,2]
[349914752,1737502235070,-731.06,0.00020879,2]
[349914753,1737502235079,-500.0,0.00020879,2]
[349914754,1737502235088,-500.0,0.00020879,2]
[349914755,1737502235098,-500.0,0.00020879,2]
[349914756,1737502235108,-500.0,0.00020879,2]
[349914757,1737502235118,-500.0,0.00020879,2]
[349914758,1737502235129,-500.0,0.00020879,2]
[349914759,1737502235138,-564.44,0.00020879,2]
[349914760,1737502235147,-500.0,0.00020879,2]
[349914761,1737502235158,-500.0,0.00020879,2]
[349914762,1737502235167,-500.0,0.00020879,2]
[349914763,1737502235176,-500.0,0.00020879,2]
[349914764,1737502235185,-500.0,0.00020879,2]
[349914765,1737502235196,-500.0,0.00020879,2]
[349914766,1737502235208,-500.0,0.00020879,2]
[349914767,1737502235217,-500.0,0.00020879,2]
[349914768,1737502235226,-500.0,0.00020879,2]
[349914769,1737502235236,-500.0,0.00020879,2]
[349914770,1737502235249,-500.0,0.00020879,2]
[349914771,1737502235259,-500.0,0.00020879,2]
[349914772,1737502235268,-500.0,0.00020879,2]
[349914773,1737502235277,-500.0,0.00020879,2]
[349914774,1737502235286,-500.0,0.00020879,2]
[349914775,1737502235295,-500.0,0.00020879,2]
[349914776,1737502235304,-500.0,0.00020879,2]
[349914777,1737502235314,-500.0,0.00020879,2]
[349914778,1737502235322,-500.0,0.00020879,2]
[349914779,1737502235332,-278.66135309,0.00020879,2]
[349914780,1737502235341,-2229.59,0.00020879,2]
[349914781,1737502235351,-632.91,0.00020879,2]
[349914782,1737502235360,-500.0,0.00020879,2]
[349914783,1737502235369,-500.0,0.00020879,2]
[349914784,1737502235378,-500.0,0.00020879,2]
[349914785,1737502235388,-500.0,0.00020879,2]
[349914786,1737502235397,-500.0,0.00020879,2]
[349914787,1737502235407,-500.0,0.00020879,2]
[349914788,1737502235417,-500.0,0.00020879,2]
[349914789,1737502235425,-500.0,0.00020879,2]
[349914790,1737502235435,-2547.71,0.00020879,2]
[349914791,1737502235445,-500.0,0.00020879,2]
[349914792,1737502235455,-500.0,0.00020879,2]
[349914793,1737502235464,-500.0,0.00020879,2]
[349914794,1737502235474,-500.0,0.00020879,2]
[349914795,1737502235483,-500.0,0.00020879,2]
[349914796,1737502235493,-500.0,0.00020879,2]
[349914797,1737502235506,-20001.46897139,0.0002088,3]
[349914798,1737502235516,-234.775385,0.0002088,2]
[349914799,1737502235525,-234.775385,0.0002088,2]
[349914800,1737502235534,-332.193725,0.0002088,2]
[349914801,1737502235544,-332.193725,0.0002088,2]
[349914802,1737502235553,-200.0,0.00020884,2]
[349914803,1737502235562,-695.90098277,0.00020885,2]
[349914804,1737502235572,-695.90098277,0.00020886,2]
[349914805,1737502235582,-274.63278466,0.00020888,2]
[349914806,1737502235591,-500.0,0.00020895,2]
[349914807,1737502235601,-500.0,0.00020895,2]
[349914808,1737502235610,-500.0,0.00020895,2]
[349914809,1737502235620,-2801.81509244,0.00020895,2]
[349914810,1737502235630,-500.58955282,0.00020896,2]
[349914811,1737502235640,-162.55836261,0.00020896,2]
[349914812,1737502235649,-187.35127176,0.00020896,2]
[349914813,1737502235659,-500.0,0.00020896,2]
[349914814,1737502235669,-500.0,0.00020896,2]
[349914815,1737502235679,-500.0,0.00020896,2]
[349914816,1737502235688,-326.68374978,0.00020896,2]
[349914817,1737502235698,-214.13525167,0.00020896,2]
[349914818,1737502235708,-500.0,0.00020896,2]
[349914819,1737502235718,-309.20194245,0.00020896,2]
[349914820,1737502235727,-1019.51578826,0.00020896,2]
[349914821,1737502235736,-327.82826302,0.00020896,2]
[349914822,1737502235746,-414.25658886,0.00020896,2]
[349914823,1737502235758,-500.0,0.00020896,2]
[349914824,1737502235768,-500.0,0.00020896,2]
[349914825,1737502235778,-500.0,0.00020896,2]
[349914826,1737502235788,-500.0,0.00020896,2]
[349914827,1737502235798,-500.0,0.00020896,2]
[349914828,1737502235807,-500.0,0.00020896,2]
[349914829,1737502235816,-500.0,0.00020896,2]
[349914830,1737502235826,-500.0,0.00020896,2]
[349914831,1737502235835,-500.0,0.00020896,2]
[349914832,1737502235844,-525.48,0.00020896,2]
[349914833,1737502235854,-500.0,0.00020896,2]
[349914834,1737502235864,-549.51549002,0.00020896,2]
[349914835,1737502235873,-1588.34,0.00020896,2]
[349914836,1737502235882,-728.83,0.00020896,2]
[349914837,1737502235892,-780.88,0.00020896,2]
[349914838,1737502235901,-500.0,0.00020896,2]
[349914839,1737502235910,-1460.17,0.00020896,2]
[349914840,1737502235920,-500.0,0.00020896,2]
[349914841,1737502235930,-500.0,0.00020896,2]
[349914842,1737502235939,-500.0,0.00020896,2]
[349914843,1737502235948,-500.0,0.00020896,2]
[349914844,1737502235958,-500.0,0.00020896,2]
[349914845,1737502235968,-1019.38,0.00020896,2]
[349914846,1737502235977,-500.0,0.00020896,2]
[349914847,1737502235987,-530.0062781,0.00020896,2]
[349914848,1737502235997,-681.8,0.00020896,2]
[349914849,1737502236008,-500.0,0.00020896,2]
[349914850,1737502236017,-500.0,0.00020896,2]
[349914851,1737502236026,-501.58257268,0.00020896,2]
[349914852,1737502236035,-500.0,0.00020896,2]
[349914853,1737502236045,-500.0,0.00020896,2]
[349914854,1737502236054,-885.92,0.00020896,2]
[349914855,1737502236063,-999.0,0.00020896,2]
[349914856,1737502236072,-500.0,0.00020896,2]
[349914857,1737502236082,-500.0,0.00020896,2]
[349914858,1737502236092,-770.94,0.00020896,2]
[349914859,1737502236101,-500.0,0.00020896,2]
[349914860,1737502236112,-500.0,0.00020896,2]
[349914861,1737502236125,-533.01,0.00020896,2]
[349914862,1737502236134,-508.72728862,0.00020896,2]
[349914863,1737502236143,-315.84839424,0.00020896,2]
[349914864,1737502236154,-1029.01,0.00020896,2]
[349914865,1737502236164,-501.4012132,0.00020896,2]
[349914866,1737502236174,-511.62455065,0.00020896,2]
[349914867,1737502236183,-151.57933323,0.00020897,2]
[349914868,1737502236195,-878273.64211698,0.00020897,2]
[349914869,1737502236578,-277.224,0.00020897,2]
[349914870,1737502236588,-1160.01436331,0.00020897,2]
[349914871,1737502236603,-620.0,0.00020897,2]
[349914872,1737502236616,-3400.00000001,0.00020897,2]
[349914873,1737502236627,-821.24910659,0.00020897,2]
[349914874,1737502236644,-7704.2232308,0.00020897,2]
[349914875,1737502236655,-1866.80167037,0.00020897,2]
[349914876,1737502236666,-41467.21484748,0.00020897,2]
[349914877,1737502236677,-175931.49944094,0.00020897,2]
[349914878,1737502236688,-5996.39302432,0.00020897,2]
[349914880,1737502238408,-11118.64364424,0.00020897,2]
[349914881,1737502238490,-500.0,0.00020796,2]
[349914882,1737502238502,-3831.113,0.00020897,2]
[349914883,1737502238514,-43163.53741599,0.00020897,2]
[349914884,1737502238526,-328.38548,0.00020897,2]
[349914885,1737502238563,-19548.36541207,0.00020897,2]
[349914886,1737502238575,-5489.71735226,0.00020897,2]
[349914887,1737502238586,-105763.79842998,0.00020897,2]
[349914913,1737502240528,-299.58945154,0.00020796,2]
[349914914,1737502240540,-200.41054846,0.00020796,2]
[349914915,1737502240550,-345.81971721,0.00020796,2]
[349914916,1737502240562,-154.18028279,0.00020796,2]
[349914917,1737502240572,-500.0,0.00020879,2]
[349914918,1737502240582,-544.90051041,0.00020896,2]
[349914919,1737502240591,-3300.35964707,0.00020897,2]
[349914920,1737502240603,-8471.56575124,0.00020897,2]
[349914921,1737502240614,-30451.4185078,0.00020897,2]
[349914922,1737502240819,-500.0,0.00020796,2]
[349914923,1737502240830,-500.0,0.00020896,2]
[349914924,1737502240840,-58.5,0.00020897,2]
[349914925,1737502240853,-1059.2,0.00020897,2]
[349914926,1737502240865,-1260.3,0.00020897,2]
[349914945,1737502243583,-477.24801,0.00020698,2]
[349914946,1737502243595,-22.75199,0.00020698,2]
[349914947,1737502243605,-337.45052,0.00020796,2]
[349914948,1737502243617,-162.54948,0.00020796,2]
[349914949,1737502243627,-500.0,0.00020796,2]
[349914950,1737502243637,-500.0,0.00020796,2]
[349914951,1737502243647,-500.0,0.00020879,2]
[349914953,1737502243656,-285.29852,0.00020879,2]
[349914954,1737502243672,-214.70148,0.00020879,2]
[349914955,1737502243682,-500.58748307,0.00020879,2]
[349914956,1737502243692,-15888.19694229,0.00020897,2]
[349914957,1737502243702,-2801.81509244,0.00020897,2]
[349914958,1737502243711,-500.0,0.00020897,2]
[349914959,1737502243722,-500.0,0.00020897,2]
[349914960,1737502243731,-500.0,0.00020897,2]
[349914961,1737502243741,-500.0,0.00020897,2]
[349914962,1737502243751,-456.12223951,0.00020897,2]
[349914963,1737502243762,-500.0,0.00020897,2]
[349914964,1737502243771,-500.0,0.00020897,2]
[349914965,1737502243781,-500.0,0.00020897,2]
[349914966,1737502243790,-500.0,0.00020897,2]
[349914967,1737502243799,-500.0,0.00020897,2]
[349914968,1737502243809,-500.0,0.00020897,2]
[349914969,1737502243818,-500.0,0.00020897,2]
[349914970,1737502243828,-500.0,0.00020897,2]
[349914971,1737502243837,-500.0,0.00020897,2]
[349914972,1737502243847,-500.0,0.00020897,2]
[349914973,1737502243856,-500.0,0.00020897,2]
[349914974,1737502243866,-500.0,0.00020897,2]
[349914975,1737502243875,-528.35586291,0.00020897,2]
[349914976,1737502243884,-209.90547529,0.00020897,2]
[349914977,1737502243894,-500.0,0.00020897,2]
[349914978,1737502243904,-500.0,0.00020897,2]
[349914979,1737502243913,-500.0,0.00020897,2]
[349914980,1737502243923,-584.37610873,0.00020897,2]
[349914981,1737502243933,-500.0,0.00020897,2]
[349914982,1737502243943,-500.0,0.00020897,2]
[349914983,1737502243952,-500.0,0.00020897,2]
[349914985,1737502243962,-500.0,0.00020897,2]
[349914986,1737502243971,-500.0,0.00020897,2]
[349914987,1737502243981,-500.0,0.00020897,2]
[349914988,1737502243991,-500.0,0.00020897,2]
[349914989,1737502244001,-500.0,0.00020897,2]
[349914990,1737502244013,-500.0,0.00020897,2]
[349914991,1737502244023,-500.0,0.00020897,2]
[349914992,1737502244032,-500.0,0.00020897,2]
[349914993,1737502244042,-500.0,0.00020897,2]
[349914994,1737502244052,-500.0,0.00020897,2]
[349914995,1737502244061,-500.0,0.00020897,2]
[349914996,1737502244071,-500.0,0.00020897,2]
[349914997,1737502244081,-500.0,0.00020897,2]
[349914998,1737502244090,-500.0,0.00020897,2]
[349914999,1737502244100,-500.0,0.00020897,2]
[349915000,1737502244111,-500.0,0.00020897,2]
[349915001,1737502244126,-500.0,0.00020897,2]
[349915002,1737502244136,-500.0,0.00020897,2]
[349915003,1737502244145,-500.0,0.00020897,2]
[349915004,1737502244156,-500.0,0.00020897,2]
[349915005,1737502244166,-322.05834821,0.00020897,2]
[349915006,1737502244175,-500.0,0.00020897,2]
[349915007,1737502244185,-500.0,0.00020897,2]
[349915008,1737502244195,-500.0,0.00020897,2]
[349915009,1737502244204,-500.0,0.00020897,2]
[349915010,1737502244214,-618.61716678,0.00020897,2]
[349915011,1737502244223,-507.67730018,0.00020897,2]
[349915012,1737502244232,-500.0,0.00020897,2]
[349915013,1737502244242,-500.0,0.00020897,2]
[349915014,1737502244251,-500.0,0.00020897,2]
[349915015,1737502244262,-360.50911379,0.00020897,2]
[349915016,1737502244271,-503.94289847,0.00020897,2]
[349915017,1737502244280,-500.0,0.00020897,2]
[349915018,1737502244289,-329.75152437,0.00020897,2]
[349915019,1737502244299,-200.0,0.00020897,2]
[349915020,1737502244308,-500.0,0.00020897,2]
[349915021,1737502244317,-520.11292154,0.00020897,2]
[349915022,1737502244327,-500.0,0.00020897,2]
[349915023,1737502244336,-500.0,0.00020897,2]
[349915024,1737502244345,-113.53911913,0.00020897,2]
[349915025,1737502244363,-386.46088087,0.00020897,2]
[349915026,1737502244372,-500.0,0.00020897,2]
[349915027,1737502244381,-500.0,0.00020897,2]
[349915028,1737502244390,-500.0,0.00020897,2]
[349915029,1737502244400,-500.0,0.00020897,2]
[349915030,1737502244410,-500.0,0.00020897,2]
[349915031,1737502244419,-500.0,0.00020897,2]
[349915032,1737502244429,-503.14,0.00020897,2]
[349915033,1737502244438,-500.0,0.00020897,2]
[349915034,1737502244448,-500.0,0.00020897,2]
[349915035,1737502244457,-500.0,0.00020897,2]
[349915036,1737502244466,-500.0,0.00020897,2]
[349915037,1737502244475,-500.0,0.00020897,2]
[349915038,1737502244484,-500.0,0.00020897,2]
[349915039,1737502244493,-500.0,0.00020897,2]
[349915040,1737502244503,-509.53749571,0.00020897,2]
[349915041,1737502244513,-500.0,0.00020897,2]
[349915042,1737502244522,-500.0,0.00020897,2]
[349915043,1737502244531,-500.0,0.00020897,2]
[349915044,1737502244540,-500.0,0.00020897,2]
[349915045,1737502244550,-500.0,0.00020897,2]
[349915046,1737502244559,-399.08132454,0.00020897,2]
[349915047,1737502244571,-100.91867546,0.00020897,2]
[349915048,1737502244581,-227.15616454,0.00020897,2]
[349915049,1737502244600,-272.84383546,0.00020897,2]
[349915050,1737502244610,-227.0624219,0.00020897,2]
[349915054,1737502246376,-250.0,0.00020104,2]
[349915055,1737502246386,-572.38738,0.00020796,2]
[349915056,1737502246395,-500.0,0.00020796,2]
[349915057,1737502246547,-272.9375781,0.00020897,2]
[349915058,1737502246590,-325.23109698,0.00020897,2]
[349915059,1737502246796,-128.85919778,0.00020897,2]
[349915060,1737502246806,-500.0,0.00020897,2]
[349915061,1737502246816,-500.0,0.00020897,2]
[349915062,1737502246826,-500.0,0.00020897,2]
[349915063,1737502246836,-500.0,0.00020897,2]
[349915064,1737502246846,-500.0,0.00020897,2]
[349915065,1737502246855,-500.0,0.00020897,2]
[349915066,1737502246864,-500.0,0.00020897,2]
[349915067,1737502246874,-500.0,0.00020897,2]
[349915068,1737502246883,-500.0,0.00020897,2]
[349915069,1737502246892,-500.0,0.00020897,2]
[349915070,1737502246902,-500.0,0.00020897,2]
[349915071,1737502246911,-500.0,0.00020897,2]
[349915072,1737502246921,-500.0,0.00020897,2]
[349915073,1737502246930,-500.0,0.00020897,2]
[349915074,1737502246940,-500.0,0.00020897,2]
[349915075,1737502246951,-500.0,0.00020897,2]
[349915076,1737502246961,-500.0,0.00020897,2]
[349915077,1737502246970,-500.0,0.00020897,2]
[349915078,1737502246980,-500.0,0.00020897,2]
[349915079,1737502246989,-500.0,0.00020897,2]
[349915080,1737502246999,-500.0,0.00020897,2]
[349915081,1737502247010,-500.0,0.00020897,2]
[349915082,1737502247020,-500.0,0.00020897,2]
[349915083,1737502247029,-500.0,0.00020897,2]
[349915084,1737502247039,-500.0,0.00020897,2]
[349915085,1737502247048,-500.0,0.00020897,2]
[349915086,1737502247057,-500.0,0.00020897,2]
[349915087,1737502247067,-500.98184117,0.00020897,2]
[349915088,1737502247076,-500.0,0.00020897,2]
[349915089,1737502247085,-500.0,0.00020897,2]
[349915090,1737502247095,-500.0,0.00020897,2]
[349915091,1737502247104,-500.0,0.00020897,2]
[349915092,1737502247116,-504.36872772,0.00020897,2]
[349915093,1737502247126,-500.0,0.00020897,2]
[349915094,1737502247135,-500.0,0.00020897,2]
[349915095,1737502247145,-500.0,0.00020897,2]
[349915096,1737502247155,-500.0,0.00020897,2]
[349915097,1737502247164,-500.0,0.00020897,2]
[349915098,1737502247174,-500.0,0.00020897,2]
[349915099,1737502247183,-500.0,0.00020897,2]
[349915100,1737502247194,-500.0,0.00020897,2]
[349915101,1737502247205,-500.0,0.00020897,2]
[349915102,1737502247216,-351.15031479,0.00020897,2]
[349915103,1737502247227,-500.0,0.00020897,2]
[349915104,1737502247237,-500.0,0.00020897,2]
[349915105,1737502247248,-500.0,0.00020897,2]
[349915106,1737502247259,-500.0,0.00020897,2]
[349915107,1737502247269,-500.0,0.00020897,2]
[349915108,1737502247278,-500.0,0.00020897,2]
[349915109,1737502247288,-500.0,0.00020897,2]
[349915110,1737502247297,-500.0,0.00020897,2]
[349915111,1737502247308,-500.0,0.00020897,2]
[349915112,1737502247318,-500.0,0.00020897,2]
[349915113,1737502247327,-500.0,0.00020897,2]
[349915114,1737502247336,-500.0,0.00020897,2]
[349915115,1737502247346,-500.0,0.00020897,2]
[349915116,1737502247355,-500.0,0.00020897,2]
[349915117,1737502247365,-500.0,0.00020897,2]
[349915118,1737502247375,-500.0,0.00020897,2]
[349915119,1737502247385,-500.0,0.00020897,2]
[349915120,1737502247394,-157.35793,0.00020897,2]
[349915121,1737502247404,-500.0,0.00020897,2]
[349915122,1737502247415,-500.0,0.00020897,2]
[349915123,1737502247425,-500.0,0.00020897,2]
[349915124,1737502247436,-500.0,0.00020897,2]
[349915125,1737502247445,-500.0,0.00020897,2]
[349915126,1737502247454,-319.26375401,0.00020897,2]
[349915127,1737502247464,-500.0,0.00020897,2]
[349915128,1737502247473,-500.0,0.00020897,2]
[349915129,1737502247483,-500.0,0.00020897,2]
[349915130,1737502247493,-500.0,0.00020897,2]
[349915131,1737502247503,-500.0,0.00020897,2]
[349915132,1737502247517,-500.0,0.00020897,2]
[349915133,1737502247527,-500.0,0.00020897,2]
[349915134,1737502247536,-500.0,0.00020897,2]
[349915135,1737502247546,-500.0,0.00020897,2]
[349915136,1737502247555,-500.0,0.00020897,2]
[349915137,1737502247565,-168.89798822,0.00020897,2]
[349915138,1737502247574,-500.0,0.00020897,2]
[349915139,1737502247584,-280.50638588,0.00020897,2]
[349915140,1737502247594,-500.0,0.00020897,2]
[349915141,1737502247603,-500.0,0.00020897,2]
[349915142,1737502247614,-500.0,0.00020897,2]
[349915143,1737502247624,-500.0,0.00020897,2]
[349915144,1737502247634,-500.0,0.00020897,2]
[349915145,1737502247643,-505.12863567,0.00020897,2]
[349915146,1737502247653,-500.0,0.00020897,2]
[349915147,1737502247664,-329.36552531,0.00020897,2]
[349915148,1737502247673,-500.0,0.00020897,2]
[349915149,1737502247683,-428.72177922,0.00020897,2]
[349915150,1737502247694,-500.0,0.00020897,2]
[349915151,1737502247703,-500.0,0.00020897,2]
[349915152,1737502247713,-500.0,0.00020897,2]
[349915153,1737502247723,-500.0,0.00020897,2]
[349915154,1737502247733,-500.0,0.00020897,2]
[349915155,1737502247743,-500.0,0.00020897,2]
[349915156,1737502247752,-500.0,0.00020897,2]
[349915157,1737502247767,-500.0,0.00020897,2]
[349915158,1737502247777,-500.0,0.00020897,2]
[349915159,1737502247787,-500.0,0.00020897,2]
[349915160,1737502247797,-500.0,0.00020897,2]
[349915161,1737502247807,-500.0,0.00020897,2]
[349915162,1737502247817,-500.0,0.00020897,2]
[349915163,1737502247827,-500.0,0.00020897,2]
[349915164,1737502247836,-500.0,0.00020897,2]
[349915165,1737502247847,-500.0,0.00020897,2]
[349915166,1737502247857,-500.0,0.00020897,2]
[349915167,1737502247866,-500.0,0.00020897,2]
[349915168,1737502247876,-386.0,0.00020897,2]
[349915169,1737502247886,-500.0,0.00020897,2]
[349915170,1737502247895,-500.0,0.00020897,2]
[349915171,1737502247906,-500.0,0.00020897,2]
[349915172,1737502247916,-500.0,0.00020897,2]
[349915173,1737502247925,-520.33518601,0.00020897,2]
[349915174,1737502247935,-500.0,0.00020897,2]
[349915175,1737502247944,-500.0,0.00020897,2]
[349915176,1737502247954,-500.0,0.00020897,2]
[349915177,1737502247963,-500.0,0.00020897,2]
[349915178,1737502247973,-500.0,0.00020897,2]
[349915179,1737502247983,-500.0,0.00020897,2]
[349915180,1737502247993,-500.0,0.00020897,2]
[349915181,1737502248003,-500.0,0.00020897,2]
[349915182,1737502248015,-500.0,0.00020897,2]
[349915183,1737502248025,-500.0,0.00020897,2]
[349915184,1737502248035,-500.0,0.00020897,2]
[349915185,1737502248045,-500.0,0.00020897,2]
[349915186,1737502248055,-500.0,0.00020897,2]
[349915187,1737502248065,-500.0,0.00020897,2]
[349915188,1737502248075,-509.62132702,0.00020897,2]
[349915189,1737502248085,-500.0,0.00020897,2]
[349915190,1737502248095,-501.75530091,0.00020897,2]
[349915191,1737502248104,-500.0,0.00020897,2]
[349915192,1737502248116,-506.99323013,0.00020897,2]
[349915193,1737502248128,-500.0,0.00020897,2]
[349915194,1737502248138,-500.0,0.00020897,2]
[349915195,1737502248148,-500.0,0.00020897,2]